bitfinex/quotes_SOLUSD_20250402
["timestamp","ask_amount","ask_price","bid_price","bid_amount"]
[1743565720554,8.0841,124.67,124.63,25.873972]
[1743565722446,0.063,124.67,124.63,25.873972]
[1743565732075,0.063,124.67,124.63,25.903972]
[1743565734083,0.063,124.67,124.63,0.03]
[1743565734282,10.34542922,124.67,124.63,6.97]
[1743565734587,10.28242922,124.66,124.63,6.97]
[1743565735779,8.0224,124.65,124.63,6.97]
[1743565735971,8.0224,124.65,124.63,0.03]
[1743565741091,10.28242922,124.64,124.63,0.03]
[1743565741281,18.30552922,124.64,124.63,0.03]
[1743565741590,8.0231,124.64,124.63,0.03]
[1743565743189,88.7225,124.65,124.63,0.03]
[1743565743592,88.7225,124.65,124.63,6.97]
[1743565744099,80.7,124.65,124.63,6.97]
[1743565745592,8.0219,124.66,124.63,6.97]
[1743565749487,8.0841,124.67,124.63,6.97]
[1743565754101,28.137,124.67,124.63,6.97]
[1743565759092,10.28242922,124.65,124.63,0.03]
[1743565759388,10.28242922,124.66,124.63,0.03]
[1743565759980,8.0224,124.65,124.63,0.03]
[1743565764208,28.137,124.67,124.63,0.03]
[1743565771203,38.41942922,124.67,124.63,0.03]
[1743565772499,10.28242922,124.66,124.63,6.95]
[1743565773008,38.41942922,124.67,124.63,6.95]
[1743565774311,38.41942922,124.67,124.63,0.03]
[1743565774491,10.28242922,124.65,124.63,0.03]
[1743565774988,38.41942922,124.67,124.63,0.03]
[1743565777218,10.28242922,124.66,124.63,0.03]
[1743565778523,8.0224,124.65,124.63,0.03]
[1743565779526,10.28242922,124.64,124.63,0.03]
[1743565779818,10.28242922,124.61,124.6,30.0]
[1743565780114,10.28242922,124.6,124.59,0.03]
[1743565780692,18.30802922,124.6,124.59,0.03]
[1743565781821,18.30802922,124.6,124.59,0.0001]
[1743565789925,18.37102922,124.6,124.59,0.0001]
[1743565790237,19.87432922,124.6,124.59,0.0001]
[1743565792433,38.66613965,124.6,124.59,0.0001]
[1743565799434,18.31062922,124.56,124.54,0.03]
[1743565799627,10.28242922,124.55,124.5,7.8445]
[1743565799827,10.28242922,124.54,124.5,7.8445]
[1743565800642,10.28242922,124.55,124.5,7.8445]
[1743565801456,28.1033,124.54,124.5,7.8445]
[1743565801654,38.38572922,124.54,124.5,7.8445]
[1743565802034,28.1033,124.54,124.5,7.8445]
[1743565803353,28.1033,124.54,124.5,14.7845]
[1743565804961,8.0295,124.54,124.5,14.7845]
[1743565812271,8.029,124.55,124.51,18.933972]
[1743565812464,28.1012,124.55,124.5,14.7845]
[1743565813268,0.063,124.54,124.5,14.7845]
[1743565814963,0.063,124.54,124.51,6.94]
[1743565815151,10.34542922,124.54,124.51,6.94]
[1743565817369,8.0301,124.53,124.51,6.94]
[1743565821760,8.0301,124.53,124.5,6.3314]
[1743565821965,8.0301,124.53,124.5,13.2714]
[1743565822981,8.0925,124.54,124.5,13.2714]
[1743565824074,28.1663,124.54,124.5,13.2714]
[1743565824776,28.1663,124.54,124.51,0.03]
[1743565824963,8.0925,124.54,124.51,0.03]
[1743565826878,0.063,124.54,124.51,0.31432314]
[1743565827084,0.063,124.54,124.53,0.28432314]
[1743565827377,0.063,124.54,124.52,1.6432]
[1743565828170,0.063,124.54,124.51,0.31432314]
[1743565828389,0.063,124.54,124.51,0.03]
[1743565835393,0.063,124.54,124.51,18.963972]
[1743565835687,0.063,124.54,124.51,26.995372]
[1743565835885,0.063,124.54,124.53,18.64964886]
[1743565836087,0.063,124.54,124.53,25.550872]
[1743565836270,0.063,124.54,124.53,27.207572]
[1743565837367,8.0892,124.6,124.56,0.28432314]
[1743565837568,0.063,124.6,124.57,6.94]
[1743565837974,0.063,124.6,124.58,0.28432314]
[1743565838175,0.063,124.6,124.58,18.933972]
[1743565838383,0.063,124.6,124.58,24.959072]
[1743565851502,0.063,124.6,124.56,80.9]
[1743565851713,10.34542922,124.6,124.56,80.9]
[1743565851881,10.34542922,124.6,124.53,250.36]
[1743565851882,10.28242922,124.58,124.53,250.36]
[1743565852083,10.28242922,124.58,124.54,36.92]
[1743565852295,10.28242922,124.58,124.54,6.92]
[1743565852501,10.28242922,124.57,124.54,6.92]
[1743565853308,8.0282,124.56,124.54,6.92]
[1743565855418,30.35212922,124.57,124.54,6.92]
[1743565855419,10.28242922,124.58,124.54,6.92]
[1743565856418,108.3615,124.59,124.54,6.92]
[1743565856715,10.28242922,124.58,124.54,6.92]
[1743565858215,28.0966,124.57,124.54,6.92]
[1743565860522,68.2346,124.57,124.52,0.28432314]
[1743565861929,68.2346,124.57,124.53,6.92]
[1743565862112,68.2346,124.57,124.52,0.28432314]
[1743565862302,68.2346,124.57,124.53,6.92]
[1743565864123,78.51702922,124.57,124.52,0.28432314]
[1743565864319,78.51702922,124.57,124.52,0.14216157]
[1743565865414,78.51702922,124.57,124.52,7.06216157]
[1743565867529,68.2346,124.57,124.52,7.06216157]
[1743565867835,10.28242922,124.56,124.5,80.93]
[1743565868013,10.28242922,124.54,124.49,10.64581034]
[1743565868412,11.94682922,124.55,124.49,10.64581034]
[1743565869126,11.94682922,124.55,124.49,17.56581034]
[1743565869802,68.251,124.54,124.49,17.56581034]
[1743565873437,108.3987,124.54,124.49,17.56581034]
[1743565873636,108.3987,124.54,124.5,6.92]
[1743565876432,108.3987,124.54,124.49,4.04871034]
[1743565877649,118.68112922,124.54,124.49,10.96871034]
[1743565878309,108.3987,124.54,124.49,10.96871034]
[1743565881841,108.3987,124.54,124.5,0.14216157]
[1743565882141,68.251,124.54,124.5,0.14216157]
[1743565883519,28.1033,124.54,124.5,0.14216157]
[1743565883947,28.1663,124.54,124.5,0.14216157]
[1743565884930,28.1663,124.54,124.5,7.06216157]
[1743565886543,28.1663,124.54,124.52,0.14216157]
[1743565886748,8.0925,124.54,124.52,0.14216157]
[1743565888545,0.063,124.54,124.52,0.14216157]
[1743565901259,0.063,124.54,124.5,80.93]
[1743565901567,0.063,124.54,124.5,87.85]
[1743565901767,11.98912922,124.54,124.5,6.95]
[1743565902061,8.0308,124.52,124.5,6.95]
[1743565904974,28.1063,124.53,124.5,6.95]
[1743565908680,28.1063,124.53,124.5,0.03]
[1743565911784,28.1063,124.53,124.5,0.17216157]
[1743565912774,8.0301,124.53,124.52,0.14216157]
[1743565913565,0.063,124.54,124.52,0.14216157]
[1743565914986,10.34542922,124.54,124.5,0.03]
[1743565915570,28.1055,124.53,124.5,0.03]
[1743565915759,10.28242922,124.51,124.49,0.0001]
[1743565915963,10.28242922,124.51,124.48,0.0001]
[1743565918578,8.0321,124.5,124.48,0.0001]
[1743565920368,30.28242922,124.49,124.47,0.0001]
[1743565920675,31.80592922,124.48,124.47,0.0001]
[1743565921393,31.80592922,124.48,124.44,0.03]
[1743565921585,10.28242922,124.46,124.44,0.03]
[1743565922405,18.31772922,124.45,124.44,0.03]
[1743565927990,18.31772922,124.45,124.43,0.03]
[1743565928298,11.93302922,124.44,124.42,0.0001]
[1743565928488,10.28242922,124.43,124.42,0.0001]
[1743565928674,11.93302922,124.44,124.42,0.0001]
[1743565929300,28.1236,124.45,124.42,0.0001]
[1743565929790,38.40602922,124.45,124.42,0.0001]
[1743565930384,10.28242922,124.43,124.42,0.0001]
[1743565930579,11.93302922,124.43,124.42,0.0001]
[1743565932170,19.96962922,124.43,124.42,0.0001]
[1743565936485,8.0366,124.43,124.42,0.0001]
[1743565943284,8.0996,124.43,124.42,0.0001]
[1743565946796,0.063,124.43,124.42,0.0001]
[1743565950707,0.063,124.43,124.42,26.82911043]
[1743565952026,0.063,124.43,124.42,0.0001]
[1743565958921,0.063,124.43,124.42,18.79191043]
[1743565961325,0.063,124.43,124.42,18.934072]
[1743565961524,0.063,124.43,124.42,26.971272]
[1743565962626,0.063,124.43,124.42,33.891272]
[1743565969538,0.063,124.43,124.42,25.854072]
[1743565970540,0.063,124.43,124.42,18.934072]
[1743565970709,0.063,124.43,124.42,7.06226157]
[1743565975042,0.063,124.43,124.42,0.14226157]
[1743565975247,0.063,124.43,124.42,7.06226157]
[1743565975665,0.063,124.43,124.42,0.0001]
[1743565980443,0.063,124.43,124.42,6.9201]
[1743565981340,0.063,124.43,124.42,7.06226157]
[1743565983372,27.6874,124.46,124.42,7.06226157]
[1743565989161,27.7504,124.46,124.42,7.06226157]
[1743565993852,7.6637,124.46,124.43,18.933972]
[1743565998685,27.7504,124.46,124.43,0.14216157]
[1743565999582,38.03282922,124.46,124.42,6.9201]
[1743566000276,27.7504,124.46,124.42,6.9201]
[1743566006092,27.7504,124.46,124.43,6.92]
[1743566009401,38.03282922,124.46,124.42,0.0001]
[1743566009609,18.31842922,124.44,124.42,0.0001]
[1743566011173,11.78312922,124.43,124.42,0.0001]
[1743566012516,19.81972922,124.43,124.42,0.0001]
[1743566016581,9.5373,124.43,124.42,0.0001]
[1743566023186,8.0366,124.43,124.42,0.0001]
[1743566042836,8.036,124.44,124.42,0.0001]
[1743566043004,18.31842922,124.44,124.42,0.0001]
[1743566048349,20.0,124.42,124.41,0.0001]
[1743566049327,8.0372,124.42,124.41,0.0001]
[1743566051360,28.126,124.44,124.41,0.0001]
[1743566051856,20.0,124.42,124.41,6.9201]
[1743566052021,38.40842922,124.44,124.41,6.9201]
[1743566052228,28.126,124.44,124.41,6.9201]
[1743566053458,38.40842922,124.44,124.41,6.9201]
[1743566055557,28.0372,124.42,124.41,6.9201]
[1743566058124,58.41282922,124.42,124.38,0.03]
[1743566059331,58.41282922,124.42,124.38,6.95]
[1743566060537,58.41282922,124.42,124.38,0.03]
[1743566060740,10.28242922,124.41,124.38,6.95]
[1743566060938,10.28242922,124.41,124.38,0.03]
[1743566061133,10.28242922,124.4,124.38,0.03]
[1743566061656,10.28242922,124.39,124.38,0.03]
[1743566062335,8.0392,124.39,124.38,0.03]
[1743566064356,90.98242922,124.41,124.38,0.03]
[1743566064357,8.0385,124.4,124.38,0.03]
[1743566071051,18.32092922,124.4,124.38,0.03]
[1743566071561,8.0385,124.4,124.38,0.03]
[1743566075271,18.32092922,124.4,124.38,0.03]
[1743566076158,10.28242922,124.39,124.38,0.0001]
[1743566076867,8.0385,124.4,124.38,0.0001]
[1743566077045,18.32092922,124.4,124.38,0.0001]
[1743566078650,8.0385,124.4,124.38,0.0001]
[1743566082757,0.063,124.41,124.39,6.92]
[1743566087070,0.063,124.41,124.38,6.9201]
[1743566097492,10.34542922,124.41,124.38,6.9201]
[1743566097703,20.0,124.39,124.38,0.0001]
[1743566099498,28.0392,124.39,124.38,0.0001]
[1743566099685,8.0392,124.39,124.38,0.0001]
[1743566101191,8.1009,124.41,124.38,0.0001]
[1743566101899,28.1957,124.41,124.38,0.0001]
[1743566105402,8.1009,124.41,124.38,6.64142314]
[1743566105570,0.063,124.41,124.38,6.64142314]
[1743566106482,0.063,124.41,124.4,0.14216157]
[1743566107599,0.063,124.41,124.4,0.28432314]
[1743566107798,0.063,124.41,124.4,26.972472]
[1743566107990,0.063,124.41,124.4,109.502072]
[1743566109199,0.063,124.41,124.4,1.77176157]
[1743566109374,0.063,124.41,124.4,7.06216157]
[1743566111378,0.063,124.41,124.4,27.20432314]
[1743566120007,0.063,124.41,124.4,53.892472]
[1743566120795,0.063,124.42,124.41,18.933972]
[1743566120999,0.063,124.46,124.44,0.14216157]
[1743566121320,8.0313,124.52,124.48,0.14216157]
[1743566121517,8.0313,124.52,124.49,6.92]
[1743566122103,8.0931,124.53,124.49,6.92]
[1743566125733,28.1685,124.53,124.49,6.92]
[1743566129620,8.0931,124.53,124.5,0.14216157]
[1743566131216,28.1685,124.53,124.49,6.92]
[1743566131425,38.45092922,124.53,124.49,6.92]
[1743566131929,38.45092922,124.53,124.47,0.14216157]
[1743566131930,10.28242922,124.52,124.48,6.9]
[1743566132099,10.28242922,124.52,124.46,99.69181043]
[1743566132100,10.28242922,124.51,124.46,0.14216157]
[1743566132306,10.28242922,124.51,124.47,6.9]
[1743566132808,8.0321,124.5,124.47,6.9]
[1743566133531,8.0321,124.5,124.46,0.14216157]
[1743566133713,8.0321,124.5,124.47,6.9]
[1743566134432,28.1124,124.5,124.47,6.9]
[1743566135908,10.28242922,124.52,124.47,6.9]
[1743566138928,28.1101,124.51,124.47,6.9]
[1743566141124,28.1731,124.51,124.47,6.9]
[1743566144442,28.1731,124.51,124.46,0.17216157]
[1743566144631,28.1731,124.51,124.47,6.9]
[1743566146538,28.1731,124.51,124.46,0.03]
[1743566146746,28.1731,124.51,124.47,6.9]
[1743566147656,38.45552922,124.51,124.47,6.9]
[1743566147840,10.28242922,124.49,124.46,0.03]
[1743566149432,8.0334,124.48,124.46,0.03]
[1743566153156,8.0334,124.48,124.42,1.6108]
[1743566153446,11.86742922,124.46,124.41,0.14216157]
[1743566154047,28.1236,124.45,124.41,0.14216157]
[1743566155346,28.1236,124.45,124.39,0.14216157]
[1743566155347,10.28242922,124.44,124.39,0.14216157]
[1743566155553,10.28242922,124.44,124.39,7.04216157]
[1743566155734,10.28242922,124.44,124.39,6.9]
[1743566155936,28.1282,124.43,124.39,6.9]
[1743566157233,28.1282,124.43,124.38,6.5307]
[1743566157442,28.1282,124.43,124.4,6.9]
[1743566158050,8.036,124.44,124.41,0.14216157]
[1743566160068,8.0353,124.45,124.41,0.14216157]
[1743566165459,8.0353,124.45,124.41,0.17216157]
[1743566165666,28.1236,124.45,124.41,0.17216157]
[1743566167663,38.40602922,124.45,124.41,0.03]
[1743566168457,38.40602922,124.45,124.41,6.93]
[1743566171866,38.40602922,124.45,124.41,0.03]
[1743566172064,38.40602922,124.45,124.42,6.9]
[1743566173070,10.28242922,124.44,124.42,6.9]
[1743566173858,8.0366,124.43,124.41,6.93]
[1743566176370,18.31902922,124.43,124.41,6.93]
[1743566177263,10.28242922,124.42,124.41,0.03]
[1743566178449,18.31962922,124.42,124.41,0.03]
[1743566178844,8.0372,124.42,124.41,0.03]
[1743566180466,8.0366,124.43,124.41,0.03]
[1743566180766,8.0366,124.43,124.41,0.17216157]
[1743566180969,8.0362,124.44,124.41,0.17216157]
[1743566182376,8.0362,124.44,124.41,0.03]
[1743566182377,10.28242922,124.43,124.41,0.03]
[1743566182569,8.0372,124.42,124.41,0.03]
[1743566182749,18.31962922,124.42,124.41,0.03]
[1743566189478,10.28242922,124.43,124.41,0.03]
[1743566190186,10.28242922,124.42,124.41,0.03]
[1743566190583,10.28242922,124.43,124.41,0.03]
[1743566191981,8.0372,124.42,124.41,0.03]
[1743566194478,8.0366,124.43,124.41,0.03]
[1743566194874,10.28242922,124.42,124.41,0.03]
[1743566195478,18.31902922,124.43,124.41,0.03]
[1743566196176,8.0366,124.43,124.41,0.03]
[1743566196375,18.31902922,124.43,124.41,0.03]
[1743566196765,8.0366,124.43,124.41,0.03]
[1743566198365,8.0353,124.45,124.41,0.03]
[1743566201480,28.1845,124.46,124.41,0.03]
[1743566202294,38.46692922,124.46,124.41,0.03]
[1743566204593,10.28242922,124.45,124.41,0.03]
[1743566206497,8.036,124.44,124.41,0.03]
[1743566209084,10.28242922,124.44,124.41,0.03]
[1743566209497,10.28242922,124.45,124.41,0.03]
[1743566211795,8.036,124.44,124.41,0.03]
[1743566212897,8.036,124.44,124.42,6.9]
[1743566214298,18.31842922,124.44,124.42,6.9]
[1743566214500,10.28242922,124.43,124.42,6.9]
[1743566215082,10.28242922,124.43,124.41,0.03]
[1743566215284,10.28242922,124.43,124.41,6.93]
[1743566216499,8.0372,124.42,124.41,6.93]
[1743566221217,1.6356,124.41,124.38,0.0001]
[1743566221382,10.28242922,124.39,124.38,0.0001]
[1743566222211,10.28242922,124.39,124.37,0.0001]
[1743566222425,71.4121461,124.38,124.36,0.0001]
[1743566222586,11.91322922,124.37,124.36,0.0001]
[1743566222786,19.95372922,124.37,124.36,0.0001]
[1743566225710,20.01672922,124.37,124.36,0.0001]
[1743566233135,0.063,124.37,124.36,6.9001]
[1743566234431,0.063,124.37,124.36,7.04226157]
[1743566234616,0.063,124.37,124.36,25.834072]
[1743566236212,10.34542922,124.37,124.36,6.9001]
[1743566236721,0.063,124.37,124.36,6.9001]
[1743566237123,8.1035,124.37,124.36,6.9001]
[1743566239229,8.1035,124.37,124.36,0.0001]
[1743566239414,8.1035,124.37,124.36,6.9001]
[1743566239932,0.063,124.37,124.36,6.9001]
[1743566240111,0.063,124.37,124.36,7.18442314]
[1743566240435,0.063,124.37,124.36,13.74942314]
[1743566242209,0.063,124.37,124.36,6.84942314]
[1743566242412,0.063,124.37,124.36,13.74942314]
[1743566243033,0.063,124.37,124.36,6.9001]
[1743566243328,10.34542922,124.37,124.36,6.9001]
[1743566244830,18.38592922,124.37,124.36,6.9001]
[1743566248134,18.38592922,124.37,124.36,0.0001]
[1743566248334,18.38592922,124.37,124.36,6.9001]
[1743566251636,8.1035,124.37,124.36,6.9001]
[1743566253541,0.063,124.37,124.36,6.9001]
[1743566256361,0.063,124.37,124.36,25.834072]
[1743566258847,0.063,124.37,124.36,6.9001]
[1743566258848,10.34542922,124.37,124.36,6.9001]
[1743566259948,18.38592922,124.37,124.36,6.9001]
[1743566260335,18.38592922,124.37,124.36,0.0001]
[1743566262250,20.05012922,124.37,124.36,0.0001]
[1743566265067,26.41452922,124.37,124.36,0.0001]
[1743566265238,20.0,124.34,124.33,0.03]
[1743566265550,30.28242922,124.34,124.33,0.03]
[1743566267045,38.32482922,124.34,124.33,0.03]
[1743566275300,38.32482922,124.34,124.33,0.0001]
[1743566275457,39.83822922,124.34,124.33,0.0001]
[1743566275773,29.5558,124.34,124.33,0.0001]
[1743566275973,39.83822922,124.34,124.33,0.0001]
[1743566281790,39.83822922,124.34,124.29,0.03]
[1743566281791,0.28432314,124.33,124.29,0.03]
[1743566281972,10.28242922,124.3,124.28,0.03]
[1743566282157,10.28242922,124.29,124.28,0.03]
[1743566282356,18.32802922,124.29,124.28,0.03]
[1743566284578,8.0456,124.29,124.28,0.03]
[1743566284950,8.0454,124.3,124.28,0.03]
[1743566285169,8.0454,124.3,124.29,6.92]
[1743566286887,18.32782922,124.3,124.29,6.92]
[1743566289572,18.32782922,124.3,124.28,0.03]
[1743566289767,10.28242922,124.29,124.28,0.03]
[1743566290390,12.92816493,124.29,124.28,0.03]
[1743566290778,20.97376493,124.29,124.28,0.03]
[1743566300169,8.0456,124.29,124.28,0.03]
[1743566300678,20.97376493,124.29,124.28,0.03]
[1743566302290,8.0456,124.3,124.28,0.03]
[1743566304190,20.97376493,124.3,124.28,0.03]
[1743566309111,21.03676493,124.3,124.28,0.03]
[1743566314907,8.1086,124.3,124.28,0.03]
[1743566320413,21.03676493,124.3,124.28,0.03]
[1743566322616,8.1086,124.3,124.28,0.03]
[1743566323316,21.03241095,124.3,124.28,0.03]
[1743566325107,8.1086,124.3,124.28,0.03]
[1743566326411,8.1086,124.3,124.28,6.3392]
[1743566326412,0.063,124.3,124.28,6.3392]
[1743566340348,0.063,124.3,124.28,0.03]
[1743566340539,0.063,124.3,124.29,6.9]
[1743566341441,14.59924673,124.3,124.28,6.93]
[1743566342934,8.0456,124.29,124.28,6.93]
[1743566344447,8.108,124.3,124.28,6.93]
[1743566345438,8.108,124.3,124.28,0.03]
[1743566345617,8.108,124.3,124.28,6.93]
[1743566364831,0.063,124.3,124.28,6.93]
[1743566379458,0.063,124.3,124.28,0.03]
[1743566379980,14.60327397,124.3,124.28,0.03]
[1743566380868,8.0456,124.29,124.28,0.03]
[1743566382266,22.64827397,124.3,124.28,0.03]
[1743566382952,8.108,124.3,124.28,0.03]
[1743566389387,22.64827397,124.3,124.28,0.03]
[1743566390088,8.108,124.3,124.28,0.03]
[1743566395290,0.063,124.3,124.28,0.03]
[1743566402387,0.063,124.3,124.28,6.93]
[1743566404688,14.54027397,124.29,124.23,10.28788146]
[1743566404861,34.54027397,124.25,124.24,30.0]
[1743566405065,42.58847397,124.25,124.24,30.0]
[1743566405365,8.0482,124.25,124.24,30.0]
[1743566405689,134.6,124.29,124.24,30.0]
[1743566405690,8.0463,124.28,124.24,30.0]
[1743566405989,8.0463,124.28,124.25,0.14216157]
[1743566406183,8.0463,124.28,124.26,6.9]
[1743566406392,88.7459,124.29,124.26,6.9]
[1743566406696,123.40037397,124.29,124.26,6.9]
[1743566406872,108.8601,124.29,124.26,6.9]
[1743566407072,88.7459,124.29,124.26,6.9]
[1743566408582,88.7459,124.29,124.27,6.9]
[1743566409995,80.7,124.29,124.27,6.9]
[1743566411394,0.063,124.3,124.27,6.9]
[1743566412795,0.063,124.3,124.27,6.93]
[1743566414978,0.063,124.3,124.28,0.14216157]
[1743566415199,0.063,124.3,124.27,6.93]
[1743566418188,0.063,124.3,124.27,13.5867]
[1743566419508,0.063,124.3,124.27,6.93]
[1743566424496,0.063,124.3,124.28,0.14216157]
[1743566424692,0.063,124.3,124.28,18.933972]
[1743566425014,0.063,124.3,124.28,25.237072]
[1743566430818,0.063,124.3,124.29,20.14216157]
[1743566431118,8.1044,124.36,124.31,20.0]
[1743566431316,8.1044,124.36,124.32,7.04216157]
[1743566432029,14.54027397,124.35,124.32,6.9]
[1743566432317,8.0424,124.34,124.32,6.9]
[1743566433186,42.68877397,124.34,124.29,0.14216157]
[1743566433414,42.68877397,124.34,124.31,6.9]
[1743566435103,28.1485,124.34,124.31,6.9]
[1743566435300,8.0424,124.34,124.31,6.9]
[1743566437198,0.063,124.34,124.31,6.9]
[1743566438499,14.60327397,124.34,124.31,6.9]
[1743566439196,8.0431,124.33,124.31,6.9]
[1743566445217,24.14587397,124.33,124.31,6.9]
[1743566445401,44.25357397,124.33,124.3,0.03]
[1743566445607,14.54027397,124.31,124.27,0.03]
[1743566446014,34.54027397,124.3,124.27,0.03]
[1743566446817,8.0456,124.29,124.27,0.17216157]
[1743566447394,28.1534,124.32,124.27,18.963972]
[1743566450530,28.2164,124.32,124.27,18.963972]
[1743566469145,8.1067,124.32,124.27,38.963972]
[1743566469355,0.063,124.32,124.29,38.933972]
[1743566469519,0.063,124.34,124.31,18.933972]
[1743566469716,0.063,124.34,124.32,0.14216157]
[1743566469928,0.063,124.34,124.33,25.185072]
[1743566470135,0.063,124.34,124.33,45.185072]
[1743566470433,0.063,124.34,124.33,53.228172]
[1743566470926,0.063,124.34,124.33,45.185072]
[1743566471331,0.063,124.34,124.33,51.63822899]
[1743566477433,0.063,124.34,124.33,45.185072]
[1743566477751,0.063,124.34,124.31,38.79181043]
[1743566478054,0.063,124.34,124.29,0.14216157]
[1743566478356,14.54027397,124.32,124.28,6.92]
[1743566478523,28.1576,124.3,124.27,12.59331782]
[1743566478725,14.54027397,124.29,124.27,12.59331782]
[1743566479061,42.69787397,124.3,124.27,12.59331782]
[1743566479442,28.1576,124.3,124.27,12.59331782]
[1743566479645,28.1576,124.3,124.27,0.03]
[1743566480159,28.1576,124.3,124.27,0.17216157]
[1743566480478,8.045,124.3,124.27,0.17216157]
[1743566481454,8.0444,124.31,124.27,0.17216157]
[1743566481662,42.69567397,124.31,124.27,0.03]
[1743566481877,14.54027397,124.3,124.27,0.03]
[1743566483142,42.69567397,124.31,124.27,0.03]
[1743566492474,14.54027397,124.3,124.27,0.03]
[1743566493864,8.0456,124.29,124.27,6.93]
[1743566495982,8.045,124.3,124.27,6.93]
[1743566498085,8.108,124.3,124.27,6.93]
[1743566502696,0.063,124.3,124.27,6.93]
[1743566502867,0.063,124.3,124.28,0.14216157]
[1743566508503,0.063,124.3,124.28,18.933972]
[1743566509208,0.063,124.3,124.29,6.9]
[1743566510603,0.063,124.3,124.27,0.03]
[1743566510807,0.063,124.3,124.28,6.9]
[1743566512285,14.60327397,124.3,124.28,6.9]
[1743566512706,0.063,124.3,124.28,6.9]
[1743566513210,14.54027397,124.29,124.27,0.03]
[1743566513503,34.54027397,124.28,124.27,0.0001]
[1743566515109,42.58657397,124.28,124.27,0.0001]
[1743566517000,8.0463,124.28,124.27,0.0001]
[1743566518281,8.0456,124.29,124.27,0.0001]
[1743566518487,22.58587397,124.29,124.27,0.0001]
[1743566519784,8.0456,124.29,124.27,0.0001]
[1743566520186,8.1083,124.3,124.27,6.9001]
[1743566520413,0.063,124.3,124.27,6.9001]
[1743566523417,14.60327397,124.3,124.27,0.0001]
[1743566523998,14.54027397,124.29,124.27,0.0001]
[1743566524383,8.0463,124.28,124.27,0.0001]
[1743566526615,8.0456,124.29,124.27,0.0001]
[1743566526795,22.58587397,124.29,124.27,0.0001]
[1743566527001,8.0456,124.29,124.27,0.0001]
[1743566528921,28.2206,124.3,124.27,0.0001]
[1743566529517,42.76087397,124.3,124.27,0.0001]
[1743566529926,28.2206,124.3,124.27,0.0001]
[1743566534618,8.0463,124.28,124.27,0.0001]
[1743566539429,0.063,124.3,124.28,0.14216157]
[1743566539634,0.063,124.3,124.29,7.06216157]
[1743566540915,0.063,124.3,124.29,25.853972]
[1743566543122,0.063,124.3,124.29,33.899572]
[1743566543325,0.063,124.34,124.33,0.14216157]
[1743566543528,0.063,124.34,124.33,7.06216157]
[1743566550207,0.063,124.36,124.33,55.463372]
[1743566550820,0.063,124.36,124.35,38.79181043]
[1743566551032,0.063,124.37,124.36,0.14216157]
[1743566551227,0.063,124.42,124.39,0.28432314]
[1743566551409,0.063,124.42,124.41,0.14216157]
[1743566555309,0.063,124.42,124.41,7.06216157]
[1743566557036,0.063,124.42,124.41,11.05099331]
[1743566559442,0.063,124.42,124.41,49.84280374]
[1743566559814,0.063,124.43,124.41,57.88070374]
[1743566560116,0.063,124.45,124.44,18.79181043]
[1743566560525,0.063,124.45,124.44,18.933972]
[1743566560936,0.063,124.45,124.44,26.969972]
[1743566561243,0.063,124.45,124.44,18.933972]
[1743566563727,0.063,124.45,124.44,26.969972]
[1743566565243,0.063,124.46,124.44,56.969972]
[1743566568061,0.063,124.47,124.46,18.933972]